fUST/lending_fUST_20251012
["ID","MTS","AMOUNT","RATE_DAILY","PERIOD"]
[390909495,1760211039086,-151.0,0.00025096,9]
[390909496,1760211039096,-151.0,0.00025096,9]
[390909497,1760211039105,-151.0,0.00025096,9]
[390909498,1760211039114,-151.0,0.00025096,9]
[390909499,1760211039124,-151.0,0.00025096,9]
[390909500,1760211039133,-215.41218431,0.00025096,9]
[390909501,1760211039143,-221.61764642,0.00025096,9]
[390909502,1760211039152,-151.0,0.00025096,9]
[390909503,1760211039161,-245.50022833,0.00025096,9]
[390909504,1760211039171,-261.78584438,0.00025096,9]
[390909505,1760211039180,-151.0,0.00025096,9]
[390909506,1760211039189,-151.0,0.00025096,9]
[390909507,1760211039198,-282.44633068,0.00025096,9]
[390909508,1760211039211,-151.0,0.00025096,9]
[390909509,1760211039231,-151.0,0.00025096,9]
[390909510,1760211039250,-151.0,0.00025096,9]
[390909511,1760211039261,-151.0,0.00025096,9]
[390909512,1760211039271,-500.0,0.00025096,9]
[390909513,1760211039281,-500.0,0.00025096,9]
[390909514,1760211039292,-151.0,0.00025096,9]
[390909515,1760211039302,-151.0,0.00025096,9]
[390909516,1760211039312,-151.0,0.00025096,9]
[390909517,1760211039322,-151.0,0.00025096,9]
[390909518,1760211039332,-200.0,0.000251,7]
[390909519,1760211039342,-666.66666667,0.0002512,2]
[390909520,1760211039352,-666.66666667,0.0002512,2]
[390909521,1760211039363,-168.0,0.00025134,2]
[390909522,1760211039374,-349.23187685,0.0002514,2]
[390909523,1760211039384,-198.0,0.00025151,9]
[390909524,1760211039394,-151.0,0.00025151,9]
[390909525,1760211039403,-151.40055561,0.00025151,9]
[390909526,1760211039414,-151.0,0.00025151,9]
[390909527,1760211039425,-151.0,0.00025151,9]
[390909528,1760211039434,-151.0,0.00025151,9]
[390909529,1760211039443,-500.0,0.00025151,9]
[390909530,1760211039452,-500.0,0.00025151,9]
[390909531,1760211039461,-151.0,0.00025151,9]
[390909532,1760211039470,-151.0,0.00025151,9]
[390909533,1760211039480,-151.0,0.00025151,9]
[390909534,1760211039491,-151.0,0.00025151,9]
[390909535,1760211039500,-154.809388,0.00025159,3]
[390909536,1760211039509,-202.65794507,0.00025192,2]
[390909537,1760211039519,-250.0,0.00025205,2]
[390909538,1760211039528,-151.0,0.00025206,9]
[390909539,1760211039537,-151.0,0.00025206,9]
[390909540,1760211039546,-340.29465425,0.00025206,9]
[390909541,1760211039555,-500.0,0.00025206,9]
[390909542,1760211039565,-151.0,0.00025206,9]
[390909543,1760211039574,-151.0,0.00025206,9]
[390909544,1760211039586,-198.0,0.00025206,9]
[390909545,1760211039595,-151.0,0.00025206,9]
[390909546,1760211039603,-19292.2273969,0.00025227,2]
[390909547,1760211039613,-198.0,0.0002526,9]
[390909548,1760211039624,-151.0,0.0002526,9]
[390909549,1760211039633,-500.0,0.0002526,9]
[390909550,1760211039642,-151.0,0.0002526,9]
[390909551,1760211039651,-205.80567964,0.0002526,9]
[390909552,1760211039662,-151.0,0.0002526,9]
[390909553,1760211039671,-1500.0,0.00025268,2]
[390909554,1760211039680,-1500.0,0.00025268,2]
[390909555,1760211039688,-666.66666667,0.00025271,4]
[390909556,1760211039697,-666.66666667,0.00025271,4]
[390909557,1760211039706,-666.66666667,0.00025271,4]
[390909558,1760211039715,-666.66666667,0.00025271,4]
[390909559,1760211039725,-214.2,0.00025315,9]
[390909560,1760211039734,-500.0,0.00025315,9]
[390909561,1760211039746,-151.0,0.00025315,9]
[390909562,1760211039755,-152.87937848,0.00025315,9]
[390909563,1760211039764,-168.0,0.00025345,2]
[390909564,1760211039774,-1316.28,0.0002535,3]
[390909565,1760211039783,-658.14,0.0002535,3]
[390909566,1760211039792,-329.06,0.0002535,3]
[390909567,1760211039802,-168.0,0.00025358,2]
[390909568,1760211039811,-168.0,0.00025368,2]
[390909569,1760211039820,-500.0,0.0002537,9]
[390909570,1760211039830,-213.08097716,0.0002537,9]
[390909571,1760211039840,-168.0,0.00025411,2]
[390909572,1760211039850,-666.66666667,0.00025422,6]
[390909573,1760211039859,-666.66666667,0.00025422,6]
[390909574,1760211039867,-666.66666667,0.00025422,6]
[390909575,1760211039877,-500.0,0.00025425,9]
[390909576,1760211039886,-500.0,0.0002548,9]
[390909577,1760211039895,-1074.82,0.00025502,3]
[390909578,1760211039904,-537.4,0.00025502,3]
[390909579,1760211039914,-2609.37557469,0.00025502,3]
[390909580,1760211039923,-168.0,0.00025511,2]
[390909581,1760211039932,-500.0,0.00025534,9]
[390909582,1760211039949,-9277.55437323,0.00025535,2]
[390909584,1760211039963,-152.19818,0.00025545,3]
[390909586,1760211039973,-154.809388,0.00025545,3]
[390909588,1760211039983,-152.198179,0.00025545,3]
[390909590,1760211039994,-666.66666667,0.00025573,8]
[390909592,1760211040004,-666.66666667,0.00025573,8]
[390909594,1760211040014,-666.66666667,0.00025573,8]
[390909596,1760211040024,-666.66666667,0.00025573,8]
[390909598,1760211040035,-466.0,0.00025589,9]
[390909600,1760211040045,-168.0,0.00025606,2]
[390909602,1760211040053,-600.0,0.00025616,2]
[390909604,1760211040064,-3933.0,0.0002567,2]
[390909605,1760211040074,-168.0,0.0002572,2]
[390909606,1760211040083,-666.66666667,0.00025724,10]
[390909607,1760211040092,-666.66666667,0.00025724,10]
[390909608,1760211040101,-666.66666667,0.00025724,10]
[390909609,1760211040111,-666.66666667,0.00025724,10]
[390909611,1760211040120,-381.9723653,0.0002574,2]
[390909612,1760211040129,-350.0,0.00025753,2]
[390909613,1760211040138,-17915.5400031,0.00025775,2]
[390909615,1760211040148,-2000.0,0.00025816,2]
[390909617,1760211040156,-2000.0,0.00025816,2]
[390909619,1760211040166,-358.36898031,0.00025852,2]
[390909621,1760211040175,-168.0,0.00025888,2]
[390909623,1760211040183,-1000.0,0.000259,2]
[390909625,1760211040192,-410.51979657,0.00026,60]
[390909627,1760211040201,-95292.91154787,0.00026,30]
[390909629,1760211040211,-2609.37557469,0.00026,30]
[390909631,1760211040220,-666.66666667,0.00026026,14]
[390909633,1760211040229,-1974.53,0.00026027,2]
[390909635,1760211040240,-754.70722342,0.00026033,2]
[390909637,1760211040249,-677.0321429,0.00026164,2]
[390909639,1760211040259,-666.66666667,0.00026178,16]
[390909641,1760211040268,-168.0,0.00026266,2]
[390909643,1760211040277,-450.0,0.00026301,2]
[390909644,1760211040286,-666.66666667,0.00026329,18]
[390909645,1760211040295,-414.71285376,0.0002634,2]
[390909646,1760211040305,-2609.37557469,0.00026353,2]
[390909647,1760211040314,-2500.0,0.00026364,2]
[390909648,1760211040323,-1005.68056906,0.00026364,2]
[390909650,1760211040332,-720.0,0.00026455,30]
[390909652,1760211040342,-172.65316788,0.000265,2]
[390909653,1760211040351,-580.48260469,0.000265,2]
[390909654,1760211040359,-1058.32870369,0.000265,2]
[390909655,1760211040368,-160.0,0.000265,2]
[390909656,1760211040377,-596.95,0.00026628,2]
[390909658,1760211040386,-3933.0,0.00026636,2]
[390909659,1760211040395,-587.0,0.00026641,2]
[390909661,1760211040404,-172.65316788,0.000267,2]
[390909662,1760211040413,-580.48260469,0.000267,2]
[390909663,1760211040423,-1058.32870369,0.000267,2]
[390909664,1760211040431,-153.0,0.00026709,2]
[390909665,1760211040440,-153.0,0.00026709,2]
[390909667,1760211040450,-153.0,0.00026709,2]
[390909668,1760211040458,-153.0,0.00026709,2]
[390909669,1760211040467,-153.0,0.00026709,2]
[390909670,1760211040477,-2609.37557469,0.000268,30]
[390909671,1760211040486,-2609.37557469,0.000268,30]
[390909672,1760211040498,-1165.73737308,0.000268,2]
[390909674,1760211040507,-550.0,0.00026849,2]
[390909676,1760211040517,-2351.0,0.0002689,2]
[390909678,1760211040526,-3000.0,0.00026912,2]
[390909680,1760211040535,-1104.68242187,0.00026939,2]
[390909681,1760211040544,-447.45334221,0.0002694,2]
[390909683,1760211040553,-172.65316788,0.00027,2]
[390909685,1760211040563,-580.48260469,0.00027,2]
[390909687,1760211040572,-1058.32870369,0.00027,2]
[390909689,1760211040583,-3933.0,0.00027012,7]
[390909691,1760211040593,-9277.55437323,0.00027113,2]
[390909693,1760211040602,-1000.0,0.00027123,10]
[390909695,1760211040611,-1000.0,0.00027123,10]
[390909697,1760211040622,-1000.0,0.00027123,10]
[390909699,1760211040632,-1000.0,0.00027123,10]
[390909701,1760211040642,-1000.0,0.00027123,10]
[390909703,1760211040651,-1000.0,0.00027123,10]
[390909705,1760211040661,-1000.0,0.00027123,10]
[390909707,1760211040670,-1000.0,0.00027123,10]
[390909709,1760211040679,-1000.0,0.00027123,10]
[390909711,1760211040688,-1000.0,0.00027123,10]
[390909713,1760211040698,-1000.0,0.00027123,10]
[390909715,1760211040707,-1000.0,0.00027123,10]
[390909717,1760211040716,-1000.0,0.00027123,10]
[390909719,1760211040726,-1000.0,0.00027123,10]
[390909721,1760211040735,-1000.0,0.00027123,10]
[390909724,1760211040747,-1000.0,0.00027123,10]
[390909725,1760211040757,-1000.0,0.00027123,10]
[390909728,1760211040767,-1000.0,0.00027123,10]
[390909730,1760211040776,-1000.0,0.00027123,10]
[390909732,1760211040785,-1000.0,0.00027123,10]
[390909733,1760211040795,-1000.0,0.00027123,10]
[390909735,1760211040804,-1000.0,0.00027123,10]
[390909737,1760211040813,-1000.0,0.00027123,10]
[390909739,1760211040823,-466.16538687,0.00027123,10]
[390909741,1760211040832,-2609.37557469,0.000272,10]
[390909743,1760211040842,-298.08050243,0.000272,10]
[390909745,1760211040851,-4196.0,0.00027231,2]
[390909747,1760211040860,-580.48260469,0.000273,2]
[390909749,1760211040869,-1058.32870369,0.000273,2]
[390909751,1760211040879,-1000.0,0.00027397,30]
[390909753,1760211040888,-1000.0,0.00027397,30]
[390909755,1760211040897,-1000.0,0.00027397,30]
[390909757,1760211040906,-1000.0,0.00027397,30]
[390909759,1760211040915,-1000.0,0.00027397,30]
[390909761,1760211040924,-1135.99673508,0.00027397,30]
[390909763,1760211040934,-1974.53,0.00027397,4]
[390909765,1760211040943,-650.0,0.00027397,5]
[390909767,1760211040952,-500.0,0.00027397,5]
[390909769,1760211040962,-150.0,0.00027397,5]
[390909771,1760211040971,-3787.94,0.000274,2]
[390909773,1760211040980,-3500.0,0.0002746,5]
[390909775,1760211040992,-151.87,0.00027483,15]
[390909777,1760211041001,-580.48260469,0.000275,2]
[390909779,1760211041010,-1058.32870369,0.000275,2]
[390909781,1760211041019,-1499.999999,0.000275,10]
[390909783,1760211041028,-9277.55437323,0.00027512,2]
[390909785,1760211041037,-630.0,0.00027523,2]
[390909787,1760211041046,-2159.0,0.00027523,2]
[390909789,1760211041057,-411.0,0.00027523,2]
[390909791,1760211041066,-480.19383066,0.0002754,2]
[390909793,1760211041075,-151.87,0.00027583,15]
[390909795,1760211041084,-151.87,0.00027683,15]
[390909797,1760211041093,-200.0,0.000277,120]
[390909799,1760211041102,-151.87,0.00027783,15]
[390909800,1760211041111,-1058.32870369,0.000278,2]
[390909801,1760211041121,-1000.0,0.00027831,5]
[390909803,1760211041130,-151.87,0.00027883,15]
[390909805,1760211041139,-202.65794507,0.00027894,2]
[390909807,1760211041148,-750.0,0.00027945,5]
[390909808,1760211041157,-250.0,0.00027945,5]
[390909809,1760211041166,-151.87,0.00027983,15]
[390909810,1760211041175,-10320.1734082,0.00028,5]
[390909811,1760211041188,-4000.0,0.00028008,5]
[390909812,1760211041197,-151.87,0.00028083,15]
[390909813,1760211041206,-1058.32870369,0.000281,2]
[390909814,1760211041215,-512.93431912,0.0002814,2]
[390909815,1760211041228,-151.87,0.00028183,15]
[390909816,1760211041238,-151.87,0.00028283,15]
[390909817,1760211041249,-151.87,0.00028383,15]
[390909818,1760211041258,-200.0,0.000284,120]
[390909819,1760211041268,-1058.32870369,0.000284,2]
[390909820,1760211041278,-716.34,0.00028403,2]
[390909821,1760211041292,-151.87,0.00028483,15]
[390909822,1760211041303,-850.0,0.00028493,5]
[390909823,1760211041312,-350.0,0.00028493,5]
[390909824,1760211041322,-60785.21317976,0.000285,7]
[390909825,1760211041331,-3513.85770469,0.00028556,5]
[390909826,1760211041341,-151.87,0.00028583,15]
[390909827,1760211041350,-151.87,0.00028683,15]
[390909828,1760211041359,-1058.32870369,0.000287,2]
[390909829,1760211041368,-545.67480757,0.0002874,2]
[390909830,1760211041377,-981.97391588,0.0002876,2]
[390909831,1760211041387,-1974.53,0.00028767,6]
[390909832,1760211041396,-151.87,0.00028783,15]
[390909833,1760211041406,-151.87,0.00028883,15]
[390909834,1760211041416,-1058.32870369,0.000289,2]
[390909835,1760211041426,-1165.73737308,0.000289,2]
[390909836,1760211041561,-823.0,0.00028932,2]
[390909837,1760211041574,-151.87,0.00028983,15]
[390909838,1760211041587,-2201.74723435,0.0002899,2]
[390909839,1760211041595,-1172338.00234452,0.00029,120]
[390909840,1760211041609,-671.83174573,0.00029,120]
[390909841,1760211041688,545.5937432,0.00022162,2]
[390909848,1760211043372,-278.18341173,0.00022589,2]
[390909849,1760211043432,-221.81658827,0.00022589,2]
[390909850,1760211043442,-453.89,0.0002599,10]
[390909851,1760211043451,-51.87741171,0.00029,120]
[390909852,1760211043463,-28572.11232014,0.00029,120]
[390909856,1760211046439,-500.0,0.00022589,2]
[390909857,1760211046449,-500.0,0.00022589,2]
[390909858,1760211046459,-500.0,0.00022589,2]
[390909859,1760211046468,-500.0,0.00022589,2]
[390909861,1760211046477,-500.0,0.00022589,2]
[390909862,1760211046487,-537.69,0.00022589,2]
[390909863,1760211046497,-500.50455488,0.00022589,2]
[390909864,1760211046507,-516.19869813,0.00029,120]
[390909865,1760211046522,-2064.65100048,0.00029,120]
[390909866,1760211046533,-368.1946,0.00029,120]
[390909868,1760211046546,-700.90795355,0.00029,120]
[390909869,1760211046557,-1101.14881583,0.00029,120]
[390909870,1760211046568,-28450.81163147,0.00029,120]
[390909872,1760211052582,-465.57787037,0.00029,120]
[390909873,1760211052597,-3053.1,0.00029,120]
[390909874,1760211099027,214.48,0.00019644,2]
[390909875,1760211103539,-154.3911794,0.00021429,2]
[390909876,1760211106111,-235.26310056,0.00021429,2]
[390909877,1760211111952,-39.30572004,0.00021429,2]
[390909878,1760211149992,-300.0,0.00022362,2]
[390909879,1760211152262,-246.53860285,0.00022362,2]
[390909880,1760211154248,-277.17809647,0.00022362,2]
[390909881,1760211158333,-268.35142128,0.00022362,2]
[390909882,1760211160320,-300.0,0.00022362,2]
[390909883,1760211182144,211.25,0.00019393,2]
[390909884,1760211182551,422.5,0.00021156,2]
[390909885,1760211250063,5000.0,0.00021429,2]
[390909886,1760211256806,-199.0,0.00021726,5]
[390909887,1760211260185,-168.8816209,0.00022489,2]
[390909888,1760211261012,203.18,0.00019446,2]
[390909889,1760211261424,406.37,0.00021214,2]
[390909890,1760211272490,5000.0,0.00022489,2]
[390909891,1760211295368,5000.0,0.00022573,2]
[390909892,1760211306782,0.01,0.00022572,2]
[390909893,1760211306805,1199.99,0.00022572,2]
[390909894,1760211317700,5000.0,0.00022573,2]
[390909895,1760211328905,-500.0,0.00022573,2]
[390909896,1760211328944,-500.0,0.00022573,2]
[390909897,1760211328971,-500.0,0.00022573,2]
[390909898,1760211329001,-504.1325774,0.00022573,2]
[390909899,1760211329027,-500.0,0.00022573,2]
[390909900,1760211329056,-500.0,0.00022573,2]
[390909901,1760211329083,-500.0,0.00022573,2]
[390909902,1760211338669,-555.6,0.0002258,10]
[390909903,1760211338697,-463.0,0.0002258,10]
[390909904,1760211338725,-385.83,0.0002258,10]
[390909905,1760211339650,195.58,0.00019412,2]
[390909906,1760211340051,391.16,0.00021177,2]
[390909907,1760211340789,5000.0,0.00022573,2]
[390909908,1760211345888,321.53,0.00022579,10]
[390909909,1760211356610,267.94,0.00022579,10]
[390909910,1760211362279,151.0,0.00017,2]
[390909911,1760211364359,5000.0,0.0002258,2]
[390909912,1760211368353,223.28,0.00022579,10]
[390909913,1760211375485,-300.0,0.00022586,2]
[390909914,1760211375512,-300.0,0.00022586,2]
[390909915,1760211375541,-300.0,0.00022586,2]
[390909916,1760211375569,-300.0,0.00022586,2]
[390909917,1760211375595,-300.0,0.00022586,2]
[390909918,1760211379329,186.07,0.00022579,10]
[390909919,1760211386668,5000.0,0.00022586,2]
[390909920,1760211389661,155.06,0.00022579,10]
[390909921,1760211400729,775.32,0.00022579,10]
[390909922,1760211401090,-1200.0,0.00022587,2]
[390909923,1760211401119,-500.0,0.00022587,2]
[390909924,1760211401146,-902.14,0.00022587,2]
[390909925,1760211401175,-902.14,0.00022587,2]
[390909926,1760211401205,-902.14,0.00022587,2]
[390909927,1760211401234,-285.03,0.00022587,2]
[390909928,1760211401358,-617.11,0.00022587,2]
[390909929,1760211401389,-902.14,0.00022587,2]
[390909930,1760211401419,-902.14,0.00022587,2]
[390909931,1760211401448,-902.14,0.00022587,2]
[390909932,1760211401478,-902.14,0.00022587,2]
[390909933,1760211401508,-646.53,0.00022587,2]
[390909934,1760211401694,-255.61,0.00022587,2]
[390909935,1760211401727,-902.14,0.00022587,2]
[390909936,1760211401760,-902.14,0.00022587,2]
[390909937,1760211401790,-902.14,0.00022587,2]
[390909938,1760211401822,-902.14,0.00022587,2]
[390909939,1760211401853,-902.14,0.00022587,2]
[390909940,1760211402116,-902.14,0.00022587,2]
[390909941,1760211402148,-902.14,0.00022587,2]
[390909942,1760211402184,-902.14,0.00022587,2]
[390909943,1760211402223,-902.14,0.00022587,2]
[390909944,1760211402255,-902.14,0.00022587,2]
[390909945,1760211402289,-76.47,0.00022587,2]
[390909946,1760211402577,-825.67,0.00022587,2]
[390909947,1760211402612,-902.14,0.00022587,2]
[390909948,1760211402646,-902.14,0.00022587,2]
[390909949,1760211402893,-902.14,0.00022587,2]
[390909950,1760211402926,-902.18,0.00022587,2]
[390909951,1760211402959,-500.0,0.00022587,2]
[390909952,1760211403102,-500.0,0.00022587,2]
[390909953,1760211403133,-185.64,0.00022587,2]
[390909954,1760211403164,-500.0,0.00022587,2]
[390909955,1760211403194,-500.0,0.00022587,2]
[390909956,1760211403223,-500.0,0.00022587,2]
[390909957,1760211403255,-500.0,0.00022587,2]
[390909958,1760211403287,-500.0,0.00022587,2]
[390909959,1760211403320,-170.59,0.00022587,2]
[390909960,1760211403350,-604.43,0.00022587,2]
[390909961,1760211403380,-154.31760341,0.00022587,2]
[390909962,1760211409634,1770.05479318,0.00022587,2]
[390909963,1760211409658,3229.94520682,0.00022587,2]
[390909964,1760211416689,500.0,0.00022586,2]
[390909965,1760211416958,500.0,0.00022586,2]
[390909966,1760211419889,188.11,0.00019404,2]
[390909967,1760211420279,376.23,0.00021168,2]
[390909968,1760211425021,465.693895,0.0002192,2]
[390909969,1760211426832,500.0,0.00022586,2]
[390909970,1760211427061,500.0,0.00022586,2]
[390909971,1760211427337,500.0,0.00022586,2]
[390909972,1760211427919,644.04,0.00022586,2]
[390909973,1760211429166,-500.0,0.00022588,2]
[390909974,1760211432230,5000.0,0.00022588,2]
[390909975,1760211437715,500.0,0.00022586,2]
[390909976,1760211437946,500.0,0.00022586,2]
[390909977,1760211438198,500.0,0.00022586,2]
[390909978,1760211438439,500.0,0.00022586,2]
[390909979,1760211438723,500.0,0.00022586,2]
[390909980,1760211439070,500.0,0.00022586,2]
[390909981,1760211439450,500.0,0.00022586,2]
[390909982,1760211439704,500.0,0.00022586,2]
[390909983,1760211439943,0.01,0.00022586,2]
[390909984,1760211439966,462.28,0.00022586,2]
[390909985,1760211442297,-500.0,0.00022588,2]
[390909986,1760211442324,-500.0,0.00022588,2]
[390909987,1760211442354,-500.0,0.00022588,2]
[390909988,1760211442386,-500.0,0.00022588,2]
[390909989,1760211442564,-500.0,0.00022588,2]
[390909990,1760211442593,-500.0,0.00022588,2]
[390909991,1760211442623,-500.0,0.00022588,2]
[390909992,1760211442652,-500.0,0.00022588,2]
[390909993,1760211442678,-500.0,0.00022588,2]
[390909994,1760211442708,-500.0,0.00022588,2]
[390909995,1760211442906,-500.0,0.00022588,2]
[390909996,1760211442936,-500.0,0.00022588,2]
[390909997,1760211442964,-449.51,0.00022588,2]
[390909998,1760211442993,-500.0,0.00022588,2]
[390909999,1760211443020,-500.0,0.00022588,2]
[390910000,1760211443051,-500.0,0.00022588,2]
[390910001,1760211443086,-500.0,0.00022588,2]
[390910002,1760211443115,-176.08,0.00022588,2]
[390910003,1760211443143,-500.0,0.00022588,2]
[390910004,1760211443170,-500.0,0.00022588,2]
[390910005,1760211443197,-248.83,0.00022588,2]
[390910006,1760211443222,500.0,0.00022587,2]
[390910007,1760211443407,-251.17,0.00022588,2]
[390910008,1760211443438,-500.0,0.00022588,2]
[390910009,1760211443468,-500.0,0.00022588,2]
[390910010,1760211443497,-500.0,0.00022588,2]
[390910011,1760211443526,-500.0,0.00022588,2]
[390910012,1760211443556,-467.56,0.00022588,2]
[390910013,1760211443588,-500.0,0.00022588,2]
[390910014,1760211443617,-502.55,0.00022588,2]
[390910015,1760211443646,-500.0,0.00022588,2]
[390910016,1760211443674,-297.32,0.00022588,2]
[390910017,1760211443705,-462.81,0.00022588,2]
[390910018,1760211443788,555.38,0.00022587,2]
[390910019,1760211444160,-37.19,0.00022588,2]
[390910020,1760211444190,-500.0,0.00022588,2]
[390910021,1760211444220,-500.0,0.00022588,2]
[390910022,1760211444251,-200.86,0.00022588,2]
[390910023,1760211444400,-500.0,0.00022588,2]
[390910024,1760211444433,-500.0,0.00022588,2]
[390910025,1760211444463,-500.0,0.00022588,2]
[390910026,1760211444493,-500.0,0.00022588,2]
[390910027,1760211444524,-500.0,0.00022588,2]
[390910028,1760211444556,-500.0,0.00022588,2]
[390910029,1760211444589,-500.0,0.00022588,2]
[390910030,1760211444618,-23.91,0.00022588,2]
[390910031,1760211444744,-476.09,0.00022588,2]
[390910032,1760211444776,-357.18,0.00022588,2]
[390910033,1760211444804,-500.0,0.00022588,2]
[390910034,1760211444833,-500.0,0.00022588,2]
[390910035,1760211444865,-500.0,0.00022588,2]
[390910036,1760211444897,-500.0,0.00022588,2]
[390910037,1760211444929,-500.0,0.00022588,2]
[390910038,1760211444960,-486.03567415,0.00022588,2]
[390910039,1760211444991,-500.0,0.00022588,2]
[390910040,1760211445022,-500.0,0.00022588,2]
[390910041,1760211445253,-500.0,0.00022588,2]
[390910042,1760211445280,-500.0,0.00022588,2]
[390910043,1760211445308,-500.0,0.00022588,2]
[390910044,1760211445338,-500.0,0.00022588,2]
[390910045,1760211445366,-500.0,0.00022588,2]
[390910046,1760211445392,-500.0,0.00022588,2]
[390910047,1760211445419,-500.0,0.00022588,2]
[390910048,1760211445446,-500.0,0.00022588,2]
[390910049,1760211445474,-500.0,0.00022588,2]
[390910050,1760211445502,-471.98,0.00022588,2]
[390910051,1760211445566,-56.05,0.00022588,2]
[390910052,1760211454389,-500.0,0.00022589,2]
[390910053,1760211454416,-500.0,0.00022589,2]
[390910054,1760211454445,-500.0,0.00022589,2]
[390910055,1760211454567,-500.0,0.00022589,2]
[390910056,1760211454596,-500.0,0.00022589,2]
[390910057,1760211454623,-500.0,0.00022589,2]
[390910058,1760211454651,-500.0,0.00022589,2]
[390910059,1760211454677,-500.0,0.00022589,2]
[390910060,1760211454706,-500.0,0.00022589,2]
[390910061,1760211454736,-111.53,0.00022589,2]
[390910062,1760211454878,5000.0,0.00022588,2]
[390910063,1760211455114,-776.95,0.00022589,2]
[390910064,1760211455143,-888.48,0.00022589,2]
[390910065,1760211455172,-888.48,0.00022589,2]
[390910066,1760211455201,-888.48,0.00022589,2]
[390910067,1760211455230,-888.48,0.00022589,2]
[390910068,1760211455258,-449.79,0.00022589,2]
[390910069,1760211455444,-438.69,0.00022589,2]
[390910070,1760211455474,-888.48,0.00022589,2]
[390910071,1760211455504,-888.48,0.00022589,2]
[390910072,1760211455535,-888.48,0.00022589,2]
[390910073,1760211455563,-888.48,0.00022589,2]
[390910074,1760211455591,-888.48,0.00022589,2]
[390910075,1760211455753,-888.48,0.00022589,2]
[390910076,1760211455785,-888.48,0.00022589,2]
[390910077,1760211455814,-888.48,0.00022589,2]
[390910078,1760211455844,-888.48,0.00022589,2]
[390910079,1760211455871,-888.48,0.00022589,2]
[390910080,1760211455899,-226.73,0.00022589,2]
[390910081,1760211456258,-661.75,0.00022589,2]
[390910082,1760211456289,-888.48,0.00022589,2]
[390910083,1760211456320,-888.48,0.00022589,2]
[390910084,1760211456352,-888.48,0.00022589,2]
[390910085,1760211456381,-888.48,0.00022589,2]
[390910086,1760211456411,-680.19,0.00022589,2]
[390910087,1760211456580,-208.29,0.00022589,2]
[390910088,1760211456611,-888.48,0.00022589,2]
[390910089,1760211456638,-888.5,0.00022589,2]
[390910090,1760211456665,-500.0,0.00022589,2]
[390910091,1760211456692,-500.0,0.00022589,2]
[390910092,1760211456724,-500.0,0.00022589,2]
[390910093,1760211456752,-500.0,0.00022589,2]
[390910094,1760211456782,-500.0,0.00022589,2]
[390910095,1760211456809,-500.0,0.00022589,2]
[390910096,1760211457481,-500.0,0.00022589,2]
[390910097,1760211457511,-500.0,0.00022589,2]
[390910098,1760211457540,-500.0,0.00022589,2]
[390910099,1760211457568,-396.34,0.00022589,2]
[390910100,1760211457596,-500.34862989,0.00022589,2]
[390910101,1760211457714,-500.0,0.00022589,2]
[390910102,1760211457745,-500.0,0.00022589,2]
[390910103,1760211457773,-500.0,0.00022589,2]
[390910104,1760211457802,-500.0,0.00022589,2]